[Event "Titled Tuesday Blitz March 08 Late 2022"]
[White "Bacrot, Etienne"]
[Black "Koutlas, Nikolaos"]
[WhiteFideId "605506"]
[BlackFideId "25827138"]
[WhiteElo "2673"]
[BlackElo "1610"]
[Result "1-0"]
[Round "09"]
[TimeControl "180+1"]
[Date "2022.03.08"]
[WhiteClock "0:00:53"]
[BlackClock "0:00:01"]

1. e4 {[%clk 0:02:56]}  c5 {[%clk 0:02:58]} 2. Nf3 {[%clk 0:02:56]}  Nc6 {[%clk 0:02:58]} 3. Bb5 {[%clk 0:02:56]}  g6 {[%clk 0:02:57]} 4. h4 {[%clk 0:02:56]}  h6 {[%clk 0:02:47]} 5. c3 {[%clk 0:02:52]}  Bg7 {[%clk 0:02:46]} 6. d4 {[%clk 0:02:50]}  a6 {[%clk 0:02:38]} 7. Be2 {[%clk 0:02:41]}  Nf6 {[%clk 0:02:29]} 8. d5 {[%clk 0:02:37]}  Nb8 {[%clk 0:02:22]} 9. e5 {[%clk 0:02:31]}  Ng4 {[%clk 0:02:20]} 10. Bf4 {[%clk 0:02:30]}  d6 {[%clk 0:02:17]} 11. exd6 {[%clk 0:02:18]}  exd6 {[%clk 0:02:17]} 12. Nbd2 {[%clk 0:02:17]}  Qf6 {[%clk 0:01:39]} 13. Bg3 {[%clk 0:01:41]}  Qe7 {[%clk 0:01:06]} 14. Nc4 {[%clk 0:01:35]}  Ne5 {[%clk 0:01:04]} 15. Nfxe5 {[%clk 0:01:32]}  dxe5 {[%clk 0:01:03]} 16. Nb6 {[%clk 0:01:32]}  Nd7 {[%clk 0:00:52]} 17. Nxa8 {[%clk 0:01:30]}  Qd6 {[%clk 0:00:51]} 18. a4 {[%clk 0:01:26]}  a5 {[%clk 0:00:31]} 19. Bb5 {[%clk 0:01:12]}  O-O {[%clk 0:00:29]} 20. Qb3 {[%clk 0:01:12]}  c4 {[%clk 0:00:15]} 21. Qxc4 {[%clk 0:01:10]}  Nc5 {[%clk 0:00:16]} 22. b4 {[%clk 0:01:07]}  axb4 {[%clk 0:00:14]} 23. cxb4 {[%clk 0:01:07]}  Nd7 {[%clk 0:00:07]} 24. O-O {[%clk 0:01:05]}  f5 {[%clk 0:00:05]} 25. Qc7 {[%clk 0:01:00]}  Qxc7 {[%clk 0:00:04]} 26. Nxc7 {[%clk 0:01:00]}  f4 {[%clk 0:00:05]} 27. Bh2 {[%clk 0:01:00]}  Nb6 {[%clk 0:00:03]} 28. d6 {[%clk 0:00:59]}  g5 {[%clk 0:00:02]} 29. Rfd1 {[%clk 0:00:58]}  Bd7 {[%clk 0:00:01]} 30. a5 {[%clk 0:00:57]}  Bxb5 {[%clk 0:00:01]} 31. axb6 {[%clk 0:00:56]}  Bc6 {[%clk 0:00:02]} 32. Ra8 {[%clk 0:00:55]}  e4 {[%clk 0:00:01]} 33. d7 {[%clk 0:00:53]} 1-0


[Site "https://www.chess.com"]

[Event "Titled Tuesday Blitz March 08 Late 2022"]
[White "Bellissimo, Joseph F."]
[Black "Tanenbaum, Zachary"]
[WhiteFideId "2609843"]
[BlackFideId "2060850"]
[WhiteElo "2061"]
[BlackElo "2168"]
[Result "0-1"]
[Round "09"]
[TimeControl "180+1"]
[Date "2022.03.08"]
[WhiteClock "0:00:05"]
[BlackClock "0:00:19"]

1. e4 {[%clk 0:02:56]}  e5 {[%clk 0:02:59]} 2. Nf3 {[%clk 0:02:56]}  Nc6 {[%clk 0:02:59]} 3. Bc4 {[%clk 0:02:56]}  Nf6 {[%clk 0:02:58]} 4. d4 {[%clk 0:02:56]}  exd4 {[%clk 0:02:57]} 5. e5 {[%clk 0:02:56]}  d5 {[%clk 0:02:57]} 6. Bb5 {[%clk 0:02:57]}  Ne4 {[%clk 0:02:57]} 7. Nxd4 {[%clk 0:02:57]}  Bd7 {[%clk 0:02:57]} 8. Bxc6 {[%clk 0:02:57]}  bxc6 {[%clk 0:02:58]} 9. O-O {[%clk 0:02:58]}  Bc5 {[%clk 0:02:57]} 10. f3 {[%clk 0:02:56]}  Ng5 {[%clk 0:02:57]} 11. Be3 {[%clk 0:02:54]}  O-O {[%clk 0:02:56]} 12. f4 {[%clk 0:02:54]}  Ne4 {[%clk 0:02:56]} 13. Nd2 {[%clk 0:02:55]}  Nxd2 {[%clk 0:02:56]} 14. Qxd2 {[%clk 0:02:56]}  f6 {[%clk 0:02:56]} 15. Nb3 {[%clk 0:02:52]}  Bb6 {[%clk 0:02:55]} 16. Bc5 {[%clk 0:02:39]}  Qe7 {[%clk 0:02:51]} 17. Qe3 {[%clk 0:02:39]}  Rae8 {[%clk 0:02:44]} 18. Rae1 {[%clk 0:02:38]}  fxe5 {[%clk 0:02:38]} 19. fxe5 {[%clk 0:02:35]}  Rf5 {[%clk 0:02:27]} 20. Kh1 {[%clk 0:01:45]}  Bc8 {[%clk 0:01:54]} 21. Rxf5 {[%clk 0:00:59]}  Bxf5 {[%clk 0:01:53]} 22. Bxb6 {[%clk 0:00:54]}  axb6 {[%clk 0:01:52]} 23. Nd4 {[%clk 0:00:55]}  Be4 {[%clk 0:01:37]} 24. Nxc6 {[%clk 0:00:31]}  Qe6 {[%clk 0:01:35]} 25. Nd4 {[%clk 0:00:28]}  Qxe5 {[%clk 0:01:35]} 26. Kg1 {[%clk 0:00:22]}  c5 {[%clk 0:01:35]} 27. Nf3 {[%clk 0:00:19]}  Qxb2 {[%clk 0:01:34]} 28. c4 {[%clk 0:00:17]}  d4 {[%clk 0:01:28]} 29. Qf4 {[%clk 0:00:17]}  Qxa2 {[%clk 0:01:06]} 30. Nd2 {[%clk 0:00:11]}  Bg6 {[%clk 0:00:58]} 31. Rxe8+ {[%clk 0:00:09]}  Bxe8 {[%clk 0:00:59]} 32. Qe5 {[%clk 0:00:08]}  Qa1+ {[%clk 0:00:53]} 33. Kf2 {[%clk 0:00:08]}  Qa8 {[%clk 0:00:36]} 34. Ne4 {[%clk 0:00:07]}  Bc6 {[%clk 0:00:29]} 35. Nd6 {[%clk 0:00:05]}  Qa2+ {[%clk 0:00:23]} 36. Ke1 {[%clk 0:00:03]}  Qa1+ {[%clk 0:00:23]} 37. Kf2 {[%clk 0:00:04]}  Qb2+ {[%clk 0:00:22]} 38. Ke1 {[%clk 0:00:04]}  Qc3+ {[%clk 0:00:21]} 39. Kd1 {[%clk 0:00:03]}  Ba4+ {[%clk 0:00:19]} 40. Ke2 {[%clk 0:00:03]}  d3+ {[%clk 0:00:19]} 41. Ke3 {[%clk 0:00:03]}  Qxe5+ {[%clk 0:00:19]} 42. Kxd3 {[%clk 0:00:04]}  Qxd6+ {[%clk 0:00:19]} 43. Kc3 {[%clk 0:00:05]}  Qd4# {[%clk 0:00:19]} 0-1


[Site "https://www.chess.com"]

[Event "Titled Tuesday Blitz March 08 Late 2022"]
[White "Bibasa, Bob"]
[Black "Adewumi, Tanitoluwa"]
[WhiteFideId "10000240"]
[BlackFideId "30966396"]
[WhiteElo "2399"]
[BlackElo "2555"]
[Result "1-0"]
[Round "09"]
[TimeControl "180+1"]
[Date "2022.03.09"]
[WhiteClock "0:00:58"]
[BlackClock "0:00:03"]

1. e4 {[%clk 0:03:00]}  c6 {[%clk 0:02:55]} 2. d4 {[%clk 0:03:00]}  d5 {[%clk 0:02:56]} 3. exd5 {[%clk 0:03:01]}  cxd5 {[%clk 0:02:51]} 4. Bd3 {[%clk 0:03:01]}  Nc6 {[%clk 0:02:40]} 5. c3 {[%clk 0:03:00]}  Nf6 {[%clk 0:02:18]} 6. Bf4 {[%clk 0:02:59]}  e6 {[%clk 0:02:16]} 7. Nf3 {[%clk 0:02:57]}  Bd6 {[%clk 0:02:10]} 8. Bxd6 {[%clk 0:02:56]}  Qxd6 {[%clk 0:02:10]} 9. O-O {[%clk 0:02:56]}  O-O {[%clk 0:02:04]} 10. Qe2 {[%clk 0:02:54]}  b6 {[%clk 0:01:38]} 11. Ne5 {[%clk 0:02:54]}  Bb7 {[%clk 0:01:31]} 12. f4 {[%clk 0:02:53]}  Ne7 {[%clk 0:01:27]} 13. Nd2 {[%clk 0:02:52]}  g6 {[%clk 0:00:47]} 14. Rae1 {[%clk 0:02:33]}  a6 {[%clk 0:00:35]} 15. g4 {[%clk 0:02:24]}  b5 {[%clk 0:00:34]} 16. a3 {[%clk 0:02:17]}  Rac8 {[%clk 0:00:34]} 17. h4 {[%clk 0:02:07]}  h5 {[%clk 0:00:31]} 18. f5 {[%clk 0:01:50]}  exf5 {[%clk 0:00:20]} 19. gxf5 {[%clk 0:01:50]}  Kg7 {[%clk 0:00:16]} 20. fxg6 {[%clk 0:01:45]}  fxg6 {[%clk 0:00:17]} 21. Qg2 {[%clk 0:01:44]}  Ne4 {[%clk 0:00:16]} 22. Nxe4 {[%clk 0:01:39]}  dxe4 {[%clk 0:00:16]} 23. Bxe4 {[%clk 0:01:39]}  Bd5 {[%clk 0:00:17]} 24. Bxd5 {[%clk 0:01:35]}  Nxd5 {[%clk 0:00:18]} 25. Kh1 {[%clk 0:01:16]}  Rce8 {[%clk 0:00:13]} 26. a4 {[%clk 0:01:09]}  bxa4 {[%clk 0:00:10]} 27. c4 {[%clk 0:01:08]}  Nf4 {[%clk 0:00:10]} 28. Qb7+ {[%clk 0:00:59]}  Re7 {[%clk 0:00:09]} 29. Qe4 {[%clk 0:00:58]}  Ne6 {[%clk 0:00:02]} 30. Qxg6+ {[%clk 0:00:58]}  Kh8 {[%clk 0:00:03]} 1-0


[Site "https://www.chess.com"]

[Event "Titled Tuesday Blitz March 08 Late 2022"]
[White "Bortnyk, Olexandr"]
[Black "Dobrov, Vladimir"]
[WhiteFideId "14120828"]
[BlackFideId "4136594"]
[WhiteElo "2723"]
[BlackElo "2614"]
[Result "1/2-1/2"]
[Round "09"]
[TimeControl "180+1"]
[Date "2022.03.08"]
[WhiteClock "0:00:04"]
[BlackClock "0:00:08"]

1. e4 {[%clk 0:02:59]}  c5 {[%clk 0:02:59]} 2. Nf3 {[%clk 0:02:59]}  Nc6 {[%clk 0:02:58]} 3. c3 {[%clk 0:02:58]}  Nf6 {[%clk 0:02:47]} 4. e5 {[%clk 0:02:58]}  Nd5 {[%clk 0:02:47]} 5. d4 {[%clk 0:02:59]}  cxd4 {[%clk 0:02:48]} 6. cxd4 {[%clk 0:03:00]}  d6 {[%clk 0:02:48]} 7. Bc4 {[%clk 0:03:01]}  dxe5 {[%clk 0:02:48]} 8. dxe5 {[%clk 0:02:57]}  Ndb4 {[%clk 0:02:47]} 9. Qb3 {[%clk 0:02:57]}  e6 {[%clk 0:02:47]} 10. O-O {[%clk 0:02:54]}  Na5 {[%clk 0:02:46]} 11. Bb5+ {[%clk 0:02:52]}  Bd7 {[%clk 0:02:46]} 12. Qa4 {[%clk 0:02:52]}  Bxb5 {[%clk 0:02:43]} 13. Qxb5+ {[%clk 0:02:53]}  Nac6 {[%clk 0:02:43]} 14. Bg5 {[%clk 0:02:41]}  Qd5 {[%clk 0:02:30]} 15. Nc3 {[%clk 0:02:24]}  Qxb5 {[%clk 0:02:30]} 16. Nxb5 {[%clk 0:02:25]}  Nd5 {[%clk 0:02:25]} 17. Rfd1 {[%clk 0:02:20]}  Be7 {[%clk 0:02:12]} 18. Bxe7 {[%clk 0:01:51]}  Kxe7 {[%clk 0:02:11]} 19. Rac1 {[%clk 0:01:52]}  Rhd8 {[%clk 0:02:05]} 20. Kf1 {[%clk 0:01:35]}  Rac8 {[%clk 0:01:12]} 21. Rd2 {[%clk 0:00:59]}  Ncb4 {[%clk 0:00:56]} 22. Ra1 {[%clk 0:00:19]}  Nc6 {[%clk 0:00:46]} 23. Rad1 {[%clk 0:00:16]}  a6 {[%clk 0:00:43]} 24. Nd6 {[%clk 0:00:16]}  Rb8 {[%clk 0:00:40]} 25. Ne4 {[%clk 0:00:09]}  Nb6 {[%clk 0:00:34]} 26. Nd6 {[%clk 0:00:05]}  f6 {[%clk 0:00:29]} 27. exf6+ {[%clk 0:00:04]}  gxf6 {[%clk 0:00:30]} 28. b3 {[%clk 0:00:03]}  Nb4 {[%clk 0:00:26]} 29. g3 {[%clk 0:00:03]}  N6d5 {[%clk 0:00:19]} 30. Ne4 {[%clk 0:00:02]}  f5 {[%clk 0:00:18]} 31. Neg5 {[%clk 0:00:03]}  h6 {[%clk 0:00:16]} 32. Nh3 {[%clk 0:00:03]}  Nc3 {[%clk 0:00:13]} 33. Rxd8 {[%clk 0:00:04]}  Rxd8 {[%clk 0:00:12]} 34. Re1 {[%clk 0:00:04]}  Nbxa2 {[%clk 0:00:07]} 35. Nf4 {[%clk 0:00:04]}  Ne4 {[%clk 0:00:07]} 36. g4 {[%clk 0:00:02]}  Kf6 {[%clk 0:00:07]} 37. h4 {[%clk 0:00:01]}  Nac3 {[%clk 0:00:07]} 38. g5+ {[%clk 0:00:02]}  hxg5 {[%clk 0:00:07]} 39. hxg5+ {[%clk 0:00:03]}  Kf7 {[%clk 0:00:06]} 40. Ne5+ {[%clk 0:00:03]}  Ke7 {[%clk 0:00:06]} 41. Neg6+ {[%clk 0:00:04]}  Kd6 {[%clk 0:00:02]} 42. f3 {[%clk 0:00:04]}  Nxg5 {[%clk 0:00:02]} 43. Ne5 {[%clk 0:00:03]}  Nd5 {[%clk 0:00:02]} 44. Nc4+ {[%clk 0:00:03]}  Ke7 {[%clk 0:00:02]} 45. Ng6+ {[%clk 0:00:01]}  Kf6 {[%clk 0:00:02]} 46. Nge5 {[%clk 0:00:02]}  Nf7 {[%clk 0:00:01]} 47. Nd3 {[%clk 0:00:02]}  Nd6 {[%clk 0:00:01]} 48. Nc5 {[%clk 0:00:02]}  Nxc4 {[%clk 0:00:01]} 49. Rxe6+ {[%clk 0:00:02]}  Kg5 {[%clk 0:00:02]} 50. bxc4 {[%clk 0:00:03]}  Nf4 {[%clk 0:00:02]} 51. Re7 {[%clk 0:00:03]}  Rc8 {[%clk 0:00:03]} 52. Nxb7 {[%clk 0:00:02]}  Rxc4 {[%clk 0:00:03]} 53. Nd6 {[%clk 0:00:03]}  Rc1+ {[%clk 0:00:04]} 54. Kf2 {[%clk 0:00:03]}  Rc2+ {[%clk 0:00:05]} 55. Kf1 {[%clk 0:00:03]}  Rc1+ {[%clk 0:00:05]} 56. Kf2 {[%clk 0:00:04]}  Rc2+ {[%clk 0:00:06]} 57. Ke1 {[%clk 0:00:04]}  Rc6 {[%clk 0:00:06]} 58. Ne8 {[%clk 0:00:02]}  Re6+ {[%clk 0:00:05]} 59. Rxe6 {[%clk 0:00:02]}  Nxe6 {[%clk 0:00:06]} 60. Nd6 {[%clk 0:00:03]}  Kf4 {[%clk 0:00:06]} 61. Kd2 {[%clk 0:00:02]}  a5 {[%clk 0:00:06]} 62. Kc3 {[%clk 0:00:02]}  Kxf3 {[%clk 0:00:07]} 63. Nxf5 {[%clk 0:00:02]}  Ke4 {[%clk 0:00:07]} 64. Nd6+ {[%clk 0:00:03]}  Kd5 {[%clk 0:00:07]} 65. Nc4 {[%clk 0:00:03]}  Kc5 {[%clk 0:00:08]} 66. Nxa5 {[%clk 0:00:04]} 1/2-1/2


[Site "https://www.chess.com"]

[Event "Titled Tuesday Blitz March 08 Late 2022"]
[White "Bryakin, Mikhail"]
[Black "Derraugh, Geordie"]
[WhiteFideId "4165314"]
[BlackFideId "2603950"]
[WhiteElo "2417"]
[BlackElo "2116"]
[Result "1-0"]
[Round "09"]
[TimeControl "180+1"]
[Date "2022.03.08"]
[WhiteClock "0:01:47"]
[BlackClock "0:00:02"]

1. e4 {[%clk 0:03:00]}  e5 {[%clk 0:02:58]} 2. d4 {[%clk 0:03:01]}  exd4 {[%clk 0:02:58]} 3. Qxd4 {[%clk 0:03:01]}  Nc6 {[%clk 0:02:57]} 4. Qd3 {[%clk 0:03:02]}  d6 {[%clk 0:02:57]} 5. Nc3 {[%clk 0:03:02]}  Nf6 {[%clk 0:02:58]} 6. Bg5 {[%clk 0:03:00]}  Be7 {[%clk 0:02:58]} 7. O-O-O {[%clk 0:03:00]}  h6 {[%clk 0:02:57]} 8. Bh4 {[%clk 0:02:57]}  Be6 {[%clk 0:02:56]} 9. f4 {[%clk 0:02:56]}  g5 {[%clk 0:02:48]} 10. fxg5 {[%clk 0:02:56]}  Nh7 {[%clk 0:02:49]} 11. Nf3 {[%clk 0:02:48]}  Nxg5 {[%clk 0:02:46]} 12. Bg3 {[%clk 0:02:49]}  Qd7 {[%clk 0:02:45]} 13. Nd4 {[%clk 0:02:45]}  O-O-O {[%clk 0:02:41]} 14. Nxe6 {[%clk 0:02:43]}  Nxe6 {[%clk 0:02:40]} 15. Nd5 {[%clk 0:02:41]}  Bg5+ {[%clk 0:02:39]} 16. Kb1 {[%clk 0:02:41]}  Nc5 {[%clk 0:02:39]} 17. Qf3 {[%clk 0:02:37]}  Rde8 {[%clk 0:02:33]} 18. Bd3 {[%clk 0:02:38]}  Ne5 {[%clk 0:02:18]} 19. Qh5 {[%clk 0:02:28]}  Nexd3 {[%clk 0:01:37]} 20. cxd3 {[%clk 0:02:29]}  f5 {[%clk 0:01:31]} 21. h4 {[%clk 0:02:23]}  Bd8 {[%clk 0:01:25]} 22. Qxf5 {[%clk 0:02:22]}  Qxf5 {[%clk 0:01:24]} 23. exf5 {[%clk 0:02:23]}  Rhg8 {[%clk 0:01:22]} 24. Bf4 {[%clk 0:02:23]}  Rxg2 {[%clk 0:01:19]} 25. Bxh6 {[%clk 0:02:24]}  Na4 {[%clk 0:01:18]} 26. Bc1 {[%clk 0:02:23]}  Ree2 {[%clk 0:01:17]} 27. Nf4 {[%clk 0:02:23]}  Rxb2+ {[%clk 0:01:16]} 28. Bxb2 {[%clk 0:02:23]}  Rxb2+ {[%clk 0:01:16]} 29. Kc1 {[%clk 0:02:23]}  Rxa2 {[%clk 0:01:15]} 30. Rh3 {[%clk 0:02:03]}  Bf6 {[%clk 0:00:59]} 31. Rd2 {[%clk 0:02:03]}  Ra1+ {[%clk 0:00:57]} 32. Kc2 {[%clk 0:02:04]}  Be5 {[%clk 0:00:39]} 33. Nd5 {[%clk 0:02:03]}  c6 {[%clk 0:00:35]} 34. Ne3 {[%clk 0:02:01]}  Bc3 {[%clk 0:00:14]} 35. Rg2 {[%clk 0:01:58]}  b5 {[%clk 0:00:08]} 36. f6 {[%clk 0:01:55]}  Bxf6 {[%clk 0:00:07]} 37. h5 {[%clk 0:01:53]}  Ra2+ {[%clk 0:00:06]} 38. Kd1 {[%clk 0:01:53]}  Nc3+ {[%clk 0:00:04]} 39. Ke1 {[%clk 0:01:54]}  Ra1+ {[%clk 0:00:05]} 40. Kf2 {[%clk 0:01:54]}  Bd4 {[%clk 0:00:05]} 41. h6 {[%clk 0:01:53]}  Nd1+ {[%clk 0:00:05]} 42. Ke2 {[%clk 0:01:53]}  Nxe3 {[%clk 0:00:04]} 43. Rg8+ {[%clk 0:01:54]}  Kb7 {[%clk 0:00:04]} 44. h7 {[%clk 0:01:55]}  Ra2+ {[%clk 0:00:03]} 45. Kf3 {[%clk 0:01:55]}  Nd5 {[%clk 0:00:02]} 46. Rg4 {[%clk 0:01:54]}  Be5 {[%clk 0:00:02]} 47. Rg5 {[%clk 0:01:54]}  Bd4 {[%clk 0:00:02]} 48. Rh4 {[%clk 0:01:53]}  Bc3 {[%clk 0:00:02]} 49. d4 {[%clk 0:01:53]}  Ra3 {[%clk 0:00:02]} 50. Kg2 {[%clk 0:01:50]}  Ra2+ {[%clk 0:00:02]} 51. Kh3 {[%clk 0:01:49]}  Ra3 {[%clk 0:00:02]} 52. Rg3 {[%clk 0:01:49]}  Be1 {[%clk 0:00:01]} 53. Rxa3 {[%clk 0:01:49]}  Bxh4 {[%clk 0:00:02]} 54. h8=Q {[%clk 0:01:49]}  Bf6 {[%clk 0:00:02]} 55. Qh7+ {[%clk 0:01:49]}  Nc7 {[%clk 0:00:02]} 56. Rxa7+ {[%clk 0:01:48]}  Kxa7 {[%clk 0:00:02]} 57. Qxc7+ {[%clk 0:01:49]}  Ka6 {[%clk 0:00:03]} 58. Qxc6+ {[%clk 0:01:49]}  Ka5 {[%clk 0:00:03]} 59. Qxd6 {[%clk 0:01:50]}  Bg5 {[%clk 0:00:03]} 60. Qa3+ {[%clk 0:01:46]}  Kb6 {[%clk 0:00:03]} 61. d5 {[%clk 0:01:47]}  Bd8 {[%clk 0:00:02]} 62. Qd6+ {[%clk 0:01:46]}  Kb7 {[%clk 0:00:02]} 63. Qxd8 {[%clk 0:01:47]} 1-0


[Site "https://www.chess.com"]

[Event "Titled Tuesday Blitz March 08 Late 2022"]
[White "Calcada, Lucas Galvan"]
[Black "Clawitter, Craig"]
[WhiteFideId "22746099"]
[BlackFideId "2023105"]
[WhiteElo "1402"]
[BlackElo "2253"]
[Result "1/2-1/2"]
[Round "09"]
[TimeControl "180+1"]
[Date "2022.03.09"]
[WhiteClock "0:00:41"]
[BlackClock "0:00:06"]

1. c4 {[%clk 0:02:47]}  e6 {[%clk 0:02:23]} 2. Nc3 {[%clk 0:02:41]}  d5 {[%clk 0:02:21]} 3. d4 {[%clk 0:02:36]}  Nf6 {[%clk 0:02:20]} 4. Nf3 {[%clk 0:02:33]}  dxc4 {[%clk 0:02:20]} 5. a4 {[%clk 0:02:30]}  c5 {[%clk 0:02:19]} 6. Bg5 {[%clk 0:02:28]}  Nc6 {[%clk 0:02:17]} 7. dxc5 {[%clk 0:02:28]}  Bxc5 {[%clk 0:01:58]} 8. Qxd8+ {[%clk 0:02:26]}  Nxd8 {[%clk 0:01:47]} 9. e3 {[%clk 0:02:26]}  Be7 {[%clk 0:01:26]} 10. Bxc4 {[%clk 0:02:23]}  Bd7 {[%clk 0:01:26]} 11. O-O {[%clk 0:02:15]}  Rc8 {[%clk 0:01:26]} 12. Be2 {[%clk 0:02:13]}  Nc6 {[%clk 0:01:18]} 13. e4 {[%clk 0:01:57]}  h6 {[%clk 0:01:15]} 14. Bh4 {[%clk 0:01:54]}  g5 {[%clk 0:00:56]} 15. Bg3 {[%clk 0:01:45]}  Nh5 {[%clk 0:00:56]} 16. Rfd1 {[%clk 0:01:41]}  Nxg3 {[%clk 0:00:54]} 17. hxg3 {[%clk 0:01:41]}  a6 {[%clk 0:00:41]} 18. Rd2 {[%clk 0:01:40]}  Bf6 {[%clk 0:00:38]} 19. Nh2 {[%clk 0:01:39]}  Ne5 {[%clk 0:00:30]} 20. f4 {[%clk 0:01:30]}  Nc4 {[%clk 0:00:30]} 21. Bxc4 {[%clk 0:01:28]}  Bxc3 {[%clk 0:00:22]} 22. bxc3 {[%clk 0:01:14]}  Rxc4 {[%clk 0:00:21]} 23. Rad1 {[%clk 0:01:13]}  Rc7 {[%clk 0:00:20]} 24. Ng4 {[%clk 0:01:08]}  Ke7 {[%clk 0:00:19]} 25. e5 {[%clk 0:00:59]}  Bxa4 {[%clk 0:00:19]} 26. Rf1 {[%clk 0:00:54]}  gxf4 {[%clk 0:00:16]} 27. Rdf2 {[%clk 0:00:53]}  Be8 {[%clk 0:00:15]} 28. gxf4 {[%clk 0:00:52]}  Rxc3 {[%clk 0:00:14]} 29. Nf6 {[%clk 0:00:51]}  b5 {[%clk 0:00:11]} 30. Ne4 {[%clk 0:00:50]}  Rc4 {[%clk 0:00:10]} 31. Nd6 {[%clk 0:00:50]}  Rd4 {[%clk 0:00:10]} 32. f5 {[%clk 0:00:49]}  Rd5 {[%clk 0:00:09]} 33. f6+ {[%clk 0:00:48]}  Kd7 {[%clk 0:00:09]} 34. Re2 {[%clk 0:00:46]}  a5 {[%clk 0:00:09]} 35. Rc1 {[%clk 0:00:45]}  b4 {[%clk 0:00:08]} 36. Nc4 {[%clk 0:00:44]}  Kc6 {[%clk 0:00:07]} 37. Nxa5+ {[%clk 0:00:43]}  Kb5 {[%clk 0:00:07]} 38. Nb3 {[%clk 0:00:43]}  Bc6 {[%clk 0:00:06]} 39. Rec2 {[%clk 0:00:43]}  Rc8 {[%clk 0:00:05]} 40. Rc5+ {[%clk 0:00:42]}  Rxc5 {[%clk 0:00:05]} 41. Rxc5+ {[%clk 0:00:42]}  Kb6 {[%clk 0:00:06]} 42. Rc4 {[%clk 0:00:41]}  Kb5 {[%clk 0:00:05]} 43. Rc5+ {[%clk 0:00:41]}  Kb6 {[%clk 0:00:06]} 44. Rc4 {[%clk 0:00:41]}  Kb5 {[%clk 0:00:06]} 45. Rc5+ {[%clk 0:00:41]} 1/2-1/2


[Site "https://www.chess.com"]

[Event "Titled Tuesday Blitz March 08 Late 2022"]
[White "Cardoso Cardoso, Jose Gabriel"]
[Black "Hryshchenko, Kamila"]
[WhiteFideId "4430492"]
[BlackFideId "14147491"]
[WhiteElo "2451"]
[BlackElo "1929"]
[Result "0-1"]
[Round "09"]
[TimeControl "180+1"]
[Date "2022.03.08"]
[WhiteClock "0:00:01"]
[BlackClock "0:01:42"]

1. c4 {[%clk 0:03:00]}  d5 {[%clk 0:03:00]} 2. cxd5 {[%clk 0:02:55]}  e6 {[%clk 0:03:01]} 3. dxe6 {[%clk 0:02:54]}  Bxe6 {[%clk 0:03:02]} 4. Nc3 {[%clk 0:02:51]}  Nc6 {[%clk 0:03:02]} 5. g3 {[%clk 0:02:45]}  Bc5 {[%clk 0:03:02]} 6. Bg2 {[%clk 0:02:42]}  Nf6 {[%clk 0:03:02]} 7. Na4 {[%clk 0:02:42]}  Be7 {[%clk 0:02:55]} 8. Nf3 {[%clk 0:02:41]}  Qd7 {[%clk 0:02:54]} 9. d3 {[%clk 0:02:36]}  O-O {[%clk 0:02:52]} 10. O-O {[%clk 0:02:32]}  Rfd8 {[%clk 0:02:53]} 11. Bg5 {[%clk 0:02:29]}  h6 {[%clk 0:02:51]} 12. Bxf6 {[%clk 0:02:27]}  Bxf6 {[%clk 0:02:52]} 13. Nc5 {[%clk 0:02:27]}  Qc8 {[%clk 0:02:52]} 14. Nxe6 {[%clk 0:02:26]}  Qxe6 {[%clk 0:02:52]} 15. Qc2 {[%clk 0:02:23]}  Rac8 {[%clk 0:02:51]} 16. a3 {[%clk 0:02:21]}  Na5 {[%clk 0:02:51]} 17. b4 {[%clk 0:02:19]}  Bxa1 {[%clk 0:02:49]} 18. Rxa1 {[%clk 0:02:07]}  Nc6 {[%clk 0:02:49]} 19. e3 {[%clk 0:02:05]}  Ne7 {[%clk 0:02:49]} 20. Nd4 {[%clk 0:02:01]}  Qb6 {[%clk 0:02:49]} 21. Nb3 {[%clk 0:02:01]}  c6 {[%clk 0:02:46]} 22. d4 {[%clk 0:02:00]}  Qc7 {[%clk 0:02:44]} 23. Rc1 {[%clk 0:01:57]}  Nd5 {[%clk 0:02:41]} 24. Bh3 {[%clk 0:01:57]}  Rb8 {[%clk 0:02:40]} 25. Nc5 {[%clk 0:01:55]}  Qe7 {[%clk 0:02:39]} 26. Qb3 {[%clk 0:01:47]}  a6 {[%clk 0:02:39]} 27. Nd3 {[%clk 0:01:44]}  Rd6 {[%clk 0:02:35]} 28. Ne5 {[%clk 0:01:41]}  Rbd8 {[%clk 0:02:35]} 29. Bg2 {[%clk 0:01:39]}  h5 {[%clk 0:02:33]} 30. h4 {[%clk 0:01:38]}  Qe6 {[%clk 0:02:31]} 31. Bf3 {[%clk 0:01:33]}  g6 {[%clk 0:02:30]} 32. Qc2 {[%clk 0:01:30]}  Kg7 {[%clk 0:02:30]} 33. Kg2 {[%clk 0:01:29]}  Ne7 {[%clk 0:02:27]} 34. Nd3 {[%clk 0:01:28]}  Qc8 {[%clk 0:02:24]} 35. Nc5 {[%clk 0:01:26]}  Rf6 {[%clk 0:02:21]} 36. Ne4 {[%clk 0:01:24]}  Rf5 {[%clk 0:02:16]} 37. Ng5 {[%clk 0:01:21]}  f6 {[%clk 0:02:04]} 38. Ne4 {[%clk 0:01:20]}  Rxf3 {[%clk 0:02:05]} 39. Kxf3 {[%clk 0:01:19]}  Qg4+ {[%clk 0:02:05]} 40. Kg2 {[%clk 0:01:17]}  Nf5 {[%clk 0:02:06]} 41. Kh2 {[%clk 0:01:07]}  Re8 {[%clk 0:02:06]} 42. Nc5 {[%clk 0:01:01]}  Nxe3 {[%clk 0:02:06]} 43. Qd2 {[%clk 0:00:43]}  Qf3 {[%clk 0:01:51]} 44. fxe3 {[%clk 0:00:38]}  Rxe3 {[%clk 0:01:52]} 45. Rf1 {[%clk 0:00:05]}  Re2+ {[%clk 0:01:47]} 46. Qxe2 {[%clk 0:00:05]}  Qxe2+ {[%clk 0:01:48]} 47. Kg1 {[%clk 0:00:05]}  Qe3+ {[%clk 0:01:47]} 48. Kg2 {[%clk 0:00:05]}  Qxa3 {[%clk 0:01:45]} 49. Re1 {[%clk 0:00:03]}  Qxb4 {[%clk 0:01:42]} 50. Re7+ {[%clk 0:00:01]}  Kh6 {[%clk 0:01:42]} 0-1


[Site "https://www.chess.com"]

[Event "Titled Tuesday Blitz March 08 Late 2022"]
[White "Chigaev, Maksim"]
[Black "Pichot, Alan"]
[WhiteFideId "4108116"]
[BlackFideId "110973"]
[WhiteElo "2502"]
[BlackElo "2579"]
[Result "1-0"]
[Round "09"]
[TimeControl "180+1"]
[Date "2022.03.08"]
[WhiteClock "0:00:17"]
[BlackClock "0:00:06"]

1. d4 {[%clk 0:03:00]}  Nf6 {[%clk 0:02:58]} 2. c4 {[%clk 0:03:00]}  e6 {[%clk 0:02:58]} 3. Nf3 {[%clk 0:03:00]}  d5 {[%clk 0:02:58]} 4. g3 {[%clk 0:03:00]}  Be7 {[%clk 0:02:55]} 5. Bg2 {[%clk 0:03:01]}  O-O {[%clk 0:02:56]} 6. Qc2 {[%clk 0:03:01]}  c6 {[%clk 0:02:51]} 7. O-O {[%clk 0:03:00]}  b6 {[%clk 0:02:51]} 8. Nbd2 {[%clk 0:03:00]}  a5 {[%clk 0:02:51]} 9. e4 {[%clk 0:02:58]}  Ba6 {[%clk 0:02:45]} 10. Re1 {[%clk 0:02:54]}  Nbd7 {[%clk 0:02:42]} 11. e5 {[%clk 0:02:52]}  Ne8 {[%clk 0:02:42]} 12. cxd5 {[%clk 0:02:52]}  cxd5 {[%clk 0:02:42]} 13. Nf1 {[%clk 0:02:53]}  Rc8 {[%clk 0:02:42]} 14. Qd1 {[%clk 0:02:53]}  b5 {[%clk 0:02:39]} 15. h4 {[%clk 0:02:52]}  b4 {[%clk 0:02:39]} 16. Ne3 {[%clk 0:02:47]}  Nb6 {[%clk 0:02:32]} 17. h5 {[%clk 0:02:46]}  h6 {[%clk 0:02:31]} 18. b3 {[%clk 0:02:35]}  Nc7 {[%clk 0:02:28]} 19. Ng4 {[%clk 0:02:18]}  Nb5 {[%clk 0:02:25]} 20. Bxh6 {[%clk 0:02:16]}  gxh6 {[%clk 0:01:23]} 21. Qd2 {[%clk 0:02:16]}  Nc3 {[%clk 0:01:21]} 22. Qxh6 {[%clk 0:02:10]}  Nd7 {[%clk 0:01:21]} 23. a3 {[%clk 0:01:44]}  Bd3 {[%clk 0:01:01]} 24. axb4 {[%clk 0:01:41]}  Bf5 {[%clk 0:01:00]} 25. Ngh2 {[%clk 0:01:32]}  axb4 {[%clk 0:00:57]} 26. Ra7 {[%clk 0:01:22]}  Re8 {[%clk 0:00:58]} 27. g4 {[%clk 0:01:18]}  Be4 {[%clk 0:00:54]} 28. Qf4 {[%clk 0:01:01]}  Rf8 {[%clk 0:00:32]} 29. g5 {[%clk 0:00:34]}  Rc7 {[%clk 0:00:30]} 30. Rxc7 {[%clk 0:00:26]}  Qxc7 {[%clk 0:00:31]} 31. Ng4 {[%clk 0:00:27]}  Kh8 {[%clk 0:00:17]} 32. Nf6 {[%clk 0:00:23]}  Bf5 {[%clk 0:00:16]} 33. Nh4 {[%clk 0:00:18]}  Be4 {[%clk 0:00:13]} 34. g6 {[%clk 0:00:16]}  Kg7 {[%clk 0:00:06]} 35. h6+ {[%clk 0:00:16]}  Kh8 {[%clk 0:00:06]} 36. g7# {[%clk 0:00:17]} 1-0


[Site "https://www.chess.com"]